[Event "2026 European Womens Championship"]
[Site "Batumi, GE"]
[Date "2026.06.04"]
[Round "10"]
[White "Fataliyeva, Ulviyya"]
[Black "Nomin-Erdene, Davaademberel"]
[Result "0-1"]
[Board "6"]
[TimeControl "5400+30"]
[WhiteFideId "13403052"]
[BlackFideId "4900782"]
[WhiteElo "2450"]
[BlackElo "2328"]
[WhiteTitle "IM"]
[BlackTitle "IM"]
[WhiteClock "0:22:17"]
[BlackClock "0:29:49"]
[Variant "Standard"]

1. Nf3 {[%clk 1:21:15]}  d5 {[%clk 1:30:44]} 2. g3 {[%clk 1:21:37]}  Nf6 {[%clk 1:22:50]} 3. Bg2 {[%clk 1:21:49]}  e6 {[%clk 1:23:11]}
4. c4 {[%clk 1:22:10]}  dxc4 {[%clk 1:22:45]} 5. Qa4+ {[%clk 1:22:35]}  c6 {[%clk 1:23:10]} 6. Qxc4 {[%clk 1:23:00]}  b5 {[%clk 1:23:36]}
7. Qb3 {[%clk 1:23:25]}  Bb7 {[%clk 1:23:38]} 8. d4 {[%clk 1:22:49]}  Nbd7 {[%clk 1:23:07]} 9. O-O {[%clk 1:23:12]}  a6 {[%clk 1:20:53]}
10. Ne5 {[%clk 1:23:37]}  Nxe5 {[%clk 1:21:12]} 11. dxe5 {[%clk 1:24:03]}  Nd5 {[%clk 1:21:37]} 12. Nc3 {[%clk 1:20:44]}  Be7 {[%clk 1:12:00]}
13. a4 {[%clk 1:14:42]}  O-O {[%clk 1:07:05]} 14. Nxd5 {[%clk 1:03:38]}  exd5 {[%clk 0:51:43]} 15. e4 {[%clk 1:00:34]}  d4 {[%clk 0:50:05]}
16. Rd1 {[%clk 0:56:58]}  c5 {[%clk 0:49:55]} 17. axb5 {[%clk 0:54:59]}  axb5 {[%clk 0:49:13]} 18. Rxa8 {[%clk 0:47:37]}  Qxa8 {[%clk 0:49:14]}
19. Qxb5 {[%clk 0:42:42]}  Bxe4 {[%clk 0:48:54]} 20. Bf1 {[%clk 0:42:46]}  Qc8 {[%clk 0:34:14]} 21. Re1 {[%clk 0:39:43]}  Qf5 {[%clk 0:33:32]}
22. Bg2 {[%clk 0:36:16]}  Bxg2 {[%clk 0:29:38]} 23. Kxg2 {[%clk 0:36:40]}  h5 {[%clk 0:28:04]} 24. Qb7 {[%clk 0:35:44]}  h4 {[%clk 0:21:49]}
25. Qe4 {[%clk 0:18:54]}  h3+ {[%clk 0:21:33]} 26. Kf1 {[%clk 0:19:23]}  Qxe4 {[%clk 0:18:05]} 27. Rxe4 {[%clk 0:19:52]}  Ra8 {[%clk 0:18:26]}
28. Ke2 {[%clk 0:20:04]}  Ra1 {[%clk 0:18:03]} 29. Kd1 {[%clk 0:15:26]}  Bd8 {[%clk 0:12:06]} 30. b4 {[%clk 0:05:37]}  Bg5 {[%clk 0:08:10]}
31. f4 {[%clk 0:06:00]}  Be7 {[%clk 0:08:37]} 32. b5 {[%clk 0:02:52]}  Rb1 {[%clk 0:08:36]} 33. Kc2 {[%clk 0:02:10]}  Rxb5 {[%clk 0:09:02]}
34. Bd2 {[%clk 0:01:57]}  f5 {[%clk 0:06:30]} 35. exf6 {[%clk 0:01:36]}  Bxf6 {[%clk 0:06:54]} 36. Re8+ {[%clk 0:01:57]}  Kf7 {[%clk 0:06:44]}
37. Rc8 {[%clk 0:02:26]}  Ke6 {[%clk 0:06:46]} 38. Kd3 {[%clk 0:00:48]}  Kd7 {[%clk 0:06:51]} 39. Rh8 {[%clk 0:01:03]}  Rb3+ {[%clk 0:07:00]}
40. Kc4 {[%clk 0:01:02]}  Rb2 {[%clk 0:06:47]} 41. Ba5 {[%clk 0:01:21]}  Rc2+ {[%clk 0:00:38]} 42. Kd3 {[%clk 0:00:59]}  Ra2 {[%clk 0:26:10]}
43. Be1 {[%clk 0:31:03]}  Rxh2 {[%clk 0:24:47]} 44. g4 {[%clk 0:31:28]}  Ra2 {[%clk 0:24:11]} 45. Kc4 {[%clk 0:30:26]}  h2 {[%clk 0:22:54]}
46. Kxc5 {[%clk 0:29:49]}  d3 {[%clk 0:22:17]} 0-1

[Event "2026 European Womens Championship"]
[Site "Batumi, GE"]
[Date "2026.06.04"]
[Round "10"]
[White "Iglesias, Yosha"]
[Black "Arabidze, Meri"]
[Result "1/2-1/2"]
[Board "7"]
[TimeControl "5400+30"]
[WhiteFideId "637823"]
[BlackFideId "13604040"]
[WhiteElo "2325"]
[BlackElo "2409"]
[WhiteTitle "FM"]
[BlackTitle "IM"]
[WhiteClock "0:30:40"]
[BlackClock "0:29:00"]
[Variant "Standard"]

1. d4 {[%clk 1:30:57]}  Nf6 {[%clk 1:30:22]} 2. Bf4 {[%clk 1:31:17]}  d5 {[%clk 1:30:24]} 3. e3 {[%clk 1:31:42]}  e6 {[%clk 1:30:48]}
4. Nd2 {[%clk 1:31:51]}  Bd6 {[%clk 1:31:08]} 5. Ngf3 {[%clk 1:31:53]}  O-O {[%clk 1:31:11]} 6. Bd3 {[%clk 1:31:44]}  b6 {[%clk 1:31:18]}
7. Qe2 {[%clk 1:31:16]}  Bb7 {[%clk 1:31:14]} 8. O-O {[%clk 1:30:41]}  c5 {[%clk 1:28:45]} 9. c3 {[%clk 1:30:03]}  Qc7 {[%clk 1:27:22]}
10. Bxd6 {[%clk 1:20:01]}  Qxd6 {[%clk 1:27:34]} 11. Rad1 {[%clk 1:14:01]}  Nbd7 {[%clk 1:19:31]} 12. e4 {[%clk 1:09:32]}  dxe4 {[%clk 1:17:52]}
13. Nxe4 {[%clk 1:09:55]}  Nxe4 {[%clk 1:16:32]} 14. Bxe4 {[%clk 1:09:03]}  Bxe4 {[%clk 1:14:17]} 15. Qxe4 {[%clk 1:09:26]}  Rad8 {[%clk 1:13:43]}
16. Qe2 {[%clk 1:03:23]}  Qc7 {[%clk 1:07:05]} 17. g3 {[%clk 0:48:20]}  h6 {[%clk 1:00:53]} 18. Rfe1 {[%clk 0:37:40]}  Nf6 {[%clk 0:56:26]}
19. Qc4 {[%clk 0:32:38]}  Rd5 {[%clk 0:52:04]} 20. dxc5 {[%clk 0:28:32]}  Rxc5 {[%clk 0:47:47]} 21. Qe2 {[%clk 0:28:51]}  b5 {[%clk 0:47:35]}
22. Ne5 {[%clk 0:25:49]}  a5 {[%clk 0:46:26]} 23. a4 {[%clk 0:22:59]}  bxa4 {[%clk 0:42:05]} 24. Ra1 {[%clk 0:21:28]}  Nd7 {[%clk 0:38:18]}
25. Nxd7 {[%clk 0:19:49]}  Qxd7 {[%clk 0:38:44]} 26. Red1 {[%clk 0:19:10]}  Qb5 {[%clk 0:28:36]} 27. Qxb5 {[%clk 0:18:39]}  Rxb5 {[%clk 0:29:05]}
28. Rxa4 {[%clk 0:18:58]}  Rxb2 {[%clk 0:28:32]} 29. Rxa5 {[%clk 0:19:23]}  Rb7 {[%clk 0:28:27]} 30. c4 {[%clk 0:17:42]}  Rc7 {[%clk 0:28:25]}
31. c5 {[%clk 0:18:09]}  g5 {[%clk 0:22:56]} 32. Rc1 {[%clk 0:14:27]}  Rd8 {[%clk 0:21:40]} 33. c6 {[%clk 0:13:51]}  Kf8 {[%clk 0:19:31]}
34. Rc4 {[%clk 0:08:27]}  Ke7 {[%clk 0:19:34]} 35. h4 {[%clk 0:08:33]}  Rd5 {[%clk 0:18:57]} 36. Ra8 {[%clk 0:07:33]}  Rd6 {[%clk 0:18:11]}
37. hxg5 {[%clk 0:05:59]}  hxg5 {[%clk 0:18:36]} 38. Ra5 {[%clk 0:06:13]}  f6 {[%clk 0:17:57]} 39. Ra6 {[%clk 0:05:16]}  e5 {[%clk 0:17:38]}
40. f4 {[%clk 0:02:59]}  Ke6 {[%clk 0:13:16]} 41. fxe5 {[%clk 0:02:21]}  Kxe5 {[%clk 0:08:26]} 42. Rc2 {[%clk 0:01:11]}  Rd3 {[%clk 0:05:32]}
43. Kg2 {[%clk 0:01:06]}  Kd6 {[%clk 0:00:54]} 44. Rf2 {[%clk 0:27:55]}  Ke6 {[%clk 0:30:27]} 45. Re2+ {[%clk 0:28:12]}  Kd6 {[%clk 0:30:18]}
46. Rf2 {[%clk 0:28:35]}  Ke6 {[%clk 0:30:40]} 47. Re2+ {[%clk 0:29:00]} 1/2-1/2

[Event "2026 European Womens Championship"]
[Site "Batumi, GE"]
[Date "2026.06.04"]
[Round "10"]
[White "Sieber, Fiona"]
[Black "Wagner, Dinara"]
[Result "1/2-1/2"]
[Board "8"]
[TimeControl "5400+30"]
[WhiteFideId "12902373"]
[BlackFideId "24157570"]
[WhiteElo "2224"]
[BlackElo "2408"]
[WhiteTitle "WGM"]
[BlackTitle "IM"]
[WhiteClock "0:38:51"]
[BlackClock "0:22:12"]
[Variant "Standard"]

1. e4 {[%clk 1:30:58]}  c5 {[%clk 1:30:45]} 2. Nf3 {[%clk 1:31:23]}  Nc6 {[%clk 1:31:08]} 3. Bb5 {[%clk 1:31:48]}  d6 {[%clk 1:31:28]}
4. O-O {[%clk 1:30:23]}  Bd7 {[%clk 1:31:47]} 5. Re1 {[%clk 1:29:32]}  a6 {[%clk 1:31:50]} 6. Bf1 {[%clk 1:29:23]}  e5 {[%clk 1:31:58]}
7. c3 {[%clk 1:21:16]}  Be7 {[%clk 1:32:10]} 8. h3 {[%clk 1:17:09]}  g5 {[%clk 1:29:40]} 9. d4 {[%clk 1:12:24]}  h5 {[%clk 1:29:54]}
10. dxe5 {[%clk 1:08:17]}  dxe5 {[%clk 1:30:09]} 11. Na3 {[%clk 1:04:45]}  g4 {[%clk 0:32:26]} 12. hxg4 {[%clk 1:05:01]}  hxg4 {[%clk 0:32:53]}
13. Nh2 {[%clk 1:05:22]}  Bg5 {[%clk 0:33:20]} 14. g3 {[%clk 1:02:21]}  Bxc1 {[%clk 0:30:12]} 15. Qxc1 {[%clk 0:59:36]}  b5 {[%clk 0:28:17]}
16. Bg2 {[%clk 0:54:44]}  Qf6 {[%clk 0:27:14]} 17. Qe3 {[%clk 0:52:48]}  Rc8 {[%clk 0:20:27]} 18. Rad1 {[%clk 0:52:02]}  Nge7 {[%clk 0:18:24]}
19. Rd2 {[%clk 0:46:34]}  Be6 {[%clk 0:18:47]} 20. Red1 {[%clk 0:44:29]}  Qh6 {[%clk 0:18:15]} 21. Qxh6 {[%clk 0:39:50]}  Rxh6 {[%clk 0:18:42]}
22. Rd6 {[%clk 0:39:38]}  Ng8 {[%clk 0:13:41]} 23. Nc2 {[%clk 0:33:59]}  Bxa2 {[%clk 0:13:30]} 24. Nxg4 {[%clk 0:31:23]}  Rxd6 {[%clk 0:13:58]}
25. Rxd6 {[%clk 0:31:47]}  Ke7 {[%clk 0:14:21]} 26. Rd2 {[%clk 0:32:07]}  Rd8 {[%clk 0:14:32]} 27. Rxd8 {[%clk 0:31:56]}  Kxd8 {[%clk 0:14:59]}
28. f4 {[%clk 0:26:37]}  Be6 {[%clk 0:06:18]} 29. Nce3 {[%clk 0:25:16]}  b4 {[%clk 0:05:12]} 30. cxb4 {[%clk 0:19:39]}  cxb4 {[%clk 0:05:39]}
31. Bf1 {[%clk 0:17:01]}  a5 {[%clk 0:05:58]} 32. Bc4 {[%clk 0:13:15]}  exf4 {[%clk 0:03:59]} 33. gxf4 {[%clk 0:13:34]}  Bxc4 {[%clk 0:01:27]}
34. Nxc4 {[%clk 0:14:03]}  a4 {[%clk 0:01:55]} 35. Kf2 {[%clk 0:13:49]}  Nge7 {[%clk 0:02:21]} 36. Nf6 {[%clk 0:13:17]}  Nd4 {[%clk 0:01:53]}
37. Ke3 {[%clk 0:12:54]}  Nb5 {[%clk 0:01:19]} 38. Kd3 {[%clk 0:11:29]}  a3 {[%clk 0:00:41]} 39. bxa3 {[%clk 0:11:28]}  bxa3 {[%clk 0:01:09]}
40. Kc2 {[%clk 0:11:20]}  Nc6 {[%clk 0:01:12]} 41. Kb3 {[%clk 0:08:50]}  Ncd4+ {[%clk 0:27:33]} 42. Ka2 {[%clk 0:39:07]}  Nc2 {[%clk 0:27:06]}
43. Nd5 {[%clk 0:39:19]}  Kd7 {[%clk 0:22:12]} 44. Kb3 {[%clk 0:38:51]} 1/2-1/2

[Event "2026 European Womens Championship"]
[Site "Batumi, GE"]
[Date "2026.06.04"]
[Round "10"]
[White "Kiolbasa, Oliwia"]
[Black "Matnadze Bujiashvili, Ann"]
[Result "0-1"]
[Board "9"]
[TimeControl "5400+30"]
[WhiteFideId "1154613"]
[BlackFideId "13601377"]
[WhiteElo "2397"]
[BlackElo "2310"]
[WhiteTitle "IM"]
[BlackTitle "IM"]
[WhiteClock "0:02:04"]
[BlackClock "0:03:58"]
[Variant "Standard"]

1. e4 {[%clk 1:28:13]}  c5 {[%clk 1:30:56]} 2. Nf3 {[%clk 1:28:39]}  Nc6 {[%clk 1:31:21]} 3. d4 {[%clk 1:29:05]}  cxd4 {[%clk 1:31:47]}
4. Nxd4 {[%clk 1:29:32]}  Nf6 {[%clk 1:32:07]} 5. Nc3 {[%clk 1:29:55]}  d6 {[%clk 1:32:32]} 6. Bg5 {[%clk 1:30:15]}  e6 {[%clk 1:32:55]}
7. Qd2 {[%clk 1:30:25]}  Be7 {[%clk 1:33:17]} 8. O-O-O {[%clk 1:27:47]}  a6 {[%clk 1:33:27]} 9. Nxc6 {[%clk 1:27:33]}  bxc6 {[%clk 1:33:55]}
10. Bxf6 {[%clk 1:27:56]}  gxf6 {[%clk 1:34:08]} 11. Bc4 {[%clk 1:28:02]}  Qa5 {[%clk 1:33:27]} 12. f4 {[%clk 1:27:35]}  Bb7 {[%clk 1:31:44]}
13. Kb1 {[%clk 1:16:14]}  d5 {[%clk 1:28:34]} 14. Bb3 {[%clk 1:03:43]}  O-O-O {[%clk 1:21:21]} 15. exd5 {[%clk 1:01:57]}  cxd5 {[%clk 1:19:01]}
16. Qd3 {[%clk 0:52:31]}  f5 {[%clk 1:08:31]} 17. Ne2 {[%clk 0:49:04]}  Qc7 {[%clk 1:04:28]} 18. Qd2 {[%clk 0:40:40]}  h5 {[%clk 1:02:57]}
19. Nd4 {[%clk 0:40:46]}  h4 {[%clk 1:00:56]} 20. Rhf1 {[%clk 0:38:22]}  Qb6 {[%clk 0:59:23]} 21. Rf3 {[%clk 0:36:40]}  Bb4 {[%clk 0:59:33]}
22. Qf2 {[%clk 0:34:15]}  Rd7 {[%clk 0:58:58]} 23. Ba4 {[%clk 0:20:42]}  Rc7 {[%clk 0:59:19]} 24. Rdd3 {[%clk 0:06:43]}  Bc5 {[%clk 0:55:11]}
25. Qd2 {[%clk 0:05:43]}  Qb4 {[%clk 0:53:27]} 26. Qxb4 {[%clk 0:05:34]}  Bxb4 {[%clk 0:53:55]} 27. Rh3 {[%clk 0:05:41]}  Be7 {[%clk 0:49:16]}
28. g3 {[%clk 0:06:00]}  Bf6 {[%clk 0:44:17]} 29. c3 {[%clk 0:06:24]}  Kd8 {[%clk 0:42:52]} 30. gxh4 {[%clk 0:03:56]}  Rxh4 {[%clk 0:42:40]}
31. Rxh4 {[%clk 0:04:03]}  Bxh4 {[%clk 0:43:08]} 32. Bd1 {[%clk 0:03:56]}  Bf6 {[%clk 0:38:59]} 33. a4 {[%clk 0:03:57]}  Ke7 {[%clk 0:33:51]}
34. a5 {[%clk 0:04:04]}  Rc8 {[%clk 0:29:52]} 35. Be2 {[%clk 0:04:24]}  Rh8 {[%clk 0:29:04]} 36. h3 {[%clk 0:04:49]}  Rg8 {[%clk 0:28:40]}
37. Kc1 {[%clk 0:03:53]}  Rg2 {[%clk 0:26:49]} 38. Kd2 {[%clk 0:02:30]}  Bg7 {[%clk 0:26:33]} 39. Rf3 {[%clk 0:01:54]}  Bh6 {[%clk 0:25:18]}
40. Ke1 {[%clk 0:01:34]}  Kd6 {[%clk 0:20:31]} 41. b4 {[%clk 0:27:16]}  Ke7 {[%clk 0:45:32]} 42. Kf1 {[%clk 0:24:09]}  Rg8 {[%clk 0:45:59]}
43. Kf2 {[%clk 0:24:21]}  Rc8 {[%clk 0:45:39]} 44. Ke1 {[%clk 0:22:48]}  Kf6 {[%clk 0:45:03]} 45. Kd1 {[%clk 0:20:56]}  Bf8 {[%clk 0:40:10]}
46. Kd2 {[%clk 0:15:13]}  Bd6 {[%clk 0:40:32]} 47. Bf1 {[%clk 0:15:03]}  Ke7 {[%clk 0:37:26]} 48. Rf2 {[%clk 0:14:02]}  Kf6 {[%clk 0:35:58]}
49. Nb3 {[%clk 0:13:57]}  Ke7 {[%clk 0:30:52]} 50. b5 {[%clk 0:11:30]}  axb5 {[%clk 0:30:19]} 51. Bxb5 {[%clk 0:11:55]}  Ra8 {[%clk 0:29:41]}
52. Ke3 {[%clk 0:12:08]}  Bc7 {[%clk 0:10:52]} 53. Ra2 {[%clk 0:11:46]}  d4+ {[%clk 0:09:45]} 54. Kxd4 {[%clk 0:05:13]}  Bxf4 {[%clk 0:09:09]}
55. a6 {[%clk 0:05:39]}  Rd8+ {[%clk 0:04:37]} 56. Kc5 {[%clk 0:06:05]}  Bd5 {[%clk 0:04:15]} 57. c4 {[%clk 0:05:31]}  Ba8 {[%clk 0:03:15]}
58. a7 {[%clk 0:04:14]}  Be3+ {[%clk 0:03:02]} 59. Kb4 {[%clk 0:04:43]}  Kd6 {[%clk 0:02:31]} 60. c5+ {[%clk 0:00:54]}  Kc7 {[%clk 0:03:00]}
61. Ra1 {[%clk 0:00:41]}  f4 {[%clk 0:03:09]} 62. h4 {[%clk 0:01:08]}  f3 {[%clk 0:03:17]} 63. h5 {[%clk 0:01:24]}  f2 {[%clk 0:03:29]}
64. Bf1 {[%clk 0:00:45]}  Bf3 {[%clk 0:03:23]} 65. Kc3 {[%clk 0:00:38]}  f5 {[%clk 0:02:35]} 66. Ra6 {[%clk 0:00:37]}  Rd1 {[%clk 0:02:01]}
67. Be2 {[%clk 0:00:34]}  Rd8 {[%clk 0:02:06]} 68. Bf1 {[%clk 0:00:49]}  Rd1 {[%clk 0:02:34]} 69. c6 {[%clk 0:00:41]}  Bxa7 {[%clk 0:01:25]}
70. Rxa7+ {[%clk 0:01:07]}  Kxc6 {[%clk 0:01:48]} 71. Ra6+ {[%clk 0:00:33]}  Kd7 {[%clk 0:01:21]} 72. Nc5+ {[%clk 0:00:38]}  Ke7 {[%clk 0:01:49]}
73. Rxe6+ {[%clk 0:00:34]}  Kf7 {[%clk 0:02:19]} 74. Ba6 {[%clk 0:00:36]}  Rc1+ {[%clk 0:02:20]} 75. Kd4 {[%clk 0:00:51]}  Rxc5 {[%clk 0:02:33]}
76. Kxc5 {[%clk 0:00:45]}  Kxe6 {[%clk 0:03:01]} 77. h6 {[%clk 0:01:08]}  Kf6 {[%clk 0:03:04]} 78. Kd4 {[%clk 0:01:28]}  Bg2 {[%clk 0:02:32]}
79. h7 {[%clk 0:01:11]}  Kg7 {[%clk 0:03:01]} 80. Ke5 {[%clk 0:01:31]}  Bh3 {[%clk 0:03:09]} 81. h8=Q+ {[%clk 0:00:26]}  Kxh8 {[%clk 0:03:38]}
82. Kf6 {[%clk 0:01:21]}  Kh7 {[%clk 0:03:11]} 83. Kg5 {[%clk 0:01:46]}  Kg7 {[%clk 0:03:34]} 84. Bc4 {[%clk 0:02:05]}  Kf8 {[%clk 0:03:43]}
85. Kf6 {[%clk 0:02:31]}  Ke8 {[%clk 0:04:04]} 86. Ke6 {[%clk 0:02:26]}  Kd8 {[%clk 0:04:02]} 87. Be2 {[%clk 0:02:04]}  f4+ {[%clk 0:03:58]} 0-1

[Event "2026 European Womens Championship"]
[Site "Batumi, GE"]
[Date "2026.06.04"]
[Round "10"]
[White "Toncheva, Nadya"]
[Black "Efroimski, Marsel"]
[Result "1-0"]
[Board "10"]
[TimeControl "5400+30"]
[WhiteFideId "2924056"]
[BlackFideId "2810964"]
[WhiteElo "2320"]
[BlackElo "2386"]
[WhiteTitle "WGM"]
[BlackTitle "IM"]
[WhiteClock "0:19:14"]
[BlackClock "0:20:59"]
[Variant "Standard"]

1. d4 {[%clk 1:30:57]}  d5 {[%clk 1:30:03]} 2. c4 {[%clk 1:31:20]}  e6 {[%clk 1:30:31]} 3. Nc3 {[%clk 1:31:43]}  Nf6 {[%clk 1:30:57]}
4. cxd5 {[%clk 1:32:08]}  exd5 {[%clk 1:31:14]} 5. Bg5 {[%clk 1:32:31]}  Be7 {[%clk 1:31:41]} 6. e3 {[%clk 1:32:55]}  O-O {[%clk 1:31:52]}
7. Bd3 {[%clk 1:33:19]}  h6 {[%clk 1:32:17]} 8. Bh4 {[%clk 1:33:44]}  Re8 {[%clk 1:32:42]} 9. Nge2 {[%clk 1:34:02]}  c6 {[%clk 1:32:57]}
10. O-O {[%clk 1:33:58]}  a5 {[%clk 1:33:24]} 11. Qc2 {[%clk 1:31:16]}  Na6 {[%clk 1:33:47]} 12. a3 {[%clk 1:31:28]}  b5 {[%clk 1:33:43]}
13. f3 {[%clk 1:28:08]}  Nc7 {[%clk 1:30:35]} 14. Kh1 {[%clk 1:21:13]}  Bd7 {[%clk 1:13:16]} 15. Bf2 {[%clk 1:18:52]}  Qb8 {[%clk 1:03:36]}
16. e4 {[%clk 1:11:25]}  Rf8 {[%clk 1:03:14]} 17. e5 {[%clk 1:10:17]}  Nfe8 {[%clk 1:03:39]} 18. g4 {[%clk 1:06:31]}  Qb7 {[%clk 0:59:43]}
19. Ng3 {[%clk 1:00:12]}  Kh8 {[%clk 0:46:48]} 20. Be3 {[%clk 0:55:30]}  f6 {[%clk 0:41:22]} 21. Qd2 {[%clk 0:47:02]}  fxe5 {[%clk 0:40:54]}
22. dxe5 {[%clk 0:45:15]}  c5 {[%clk 0:35:27]} 23. Bxh6 {[%clk 0:39:11]}  Ra6 {[%clk 0:34:13]} 24. Bg5 {[%clk 0:38:49]}  Bxg5 {[%clk 0:34:39]}
25. Qxg5 {[%clk 0:39:15]}  c4 {[%clk 0:34:26]} 26. Bg6 {[%clk 0:37:49]}  Kg8 {[%clk 0:33:19]} 27. Qh5 {[%clk 0:37:01]}  Rxg6 {[%clk 0:33:33]}
28. Qxg6 {[%clk 0:37:26]}  b4 {[%clk 0:31:14]} 29. axb4 {[%clk 0:37:26]}  axb4 {[%clk 0:31:13]} 30. Nce2 {[%clk 0:37:23]}  Nb5 {[%clk 0:31:21]}
31. Nf5 {[%clk 0:35:54]}  Bxf5 {[%clk 0:31:13]} 32. gxf5 {[%clk 0:36:18]}  Qe7 {[%clk 0:29:16]} 33. Ng3 {[%clk 0:33:38]}  c3 {[%clk 0:27:04]}
34. bxc3 {[%clk 0:32:38]}  bxc3 {[%clk 0:27:25]} 35. Nh5 {[%clk 0:20:57]}  Nd4 {[%clk 0:22:21]} 36. f6 {[%clk 0:19:01]}  Qxe5 {[%clk 0:22:40]}
37. Ra7 {[%clk 0:18:47]}  Rxf6 {[%clk 0:20:20]} 38. Nxf6+ {[%clk 0:18:40]}  Qxf6 {[%clk 0:20:32]} 39. Qxe8+ {[%clk 0:19:04]}  Kh7 {[%clk 0:20:59]}
40. Qh5+ {[%clk 0:19:14]} 1-0

[Event "2026 European Womens Championship"]
[Site "Batumi, GE"]
[Date "2026.06.04"]
[Round "10"]
[White "Beydullayeva, Govhar"]
[Black "Zherebtsova, Alexandra"]
[Result "1-0"]
[Board "11"]
[TimeControl "5400+30"]
[WhiteFideId "13413015"]
[BlackFideId "24129518"]
[WhiteElo "2368"]
[BlackElo "2242"]
[WhiteTitle "WGM"]
[BlackTitle "FM"]
[WhiteClock "0:13:07"]
[BlackClock "0:00:59"]
[Variant "Standard"]

1. d4 {[%clk 1:30:57]}  d5 {[%clk 1:28:42]} 2. c4 {[%clk 1:31:24]}  c6 {[%clk 1:29:10]} 3. Nf3 {[%clk 1:31:51]}  Nf6 {[%clk 1:29:32]}
4. e3 {[%clk 1:32:16]}  e6 {[%clk 1:29:29]} 5. b3 {[%clk 1:32:35]}  Nbd7 {[%clk 1:29:10]} 6. Bb2 {[%clk 1:32:08]}  b6 {[%clk 1:27:41]}
7. Bd3 {[%clk 1:32:17]}  Bd6 {[%clk 1:27:25]} 8. Nbd2 {[%clk 1:32:33]}  Bb7 {[%clk 1:27:37]} 9. Qe2 {[%clk 1:32:41]}  O-O {[%clk 1:23:03]}
10. e4 {[%clk 1:32:26]}  dxe4 {[%clk 1:20:42]} 11. Nxe4 {[%clk 1:32:52]}  Bb4+ {[%clk 1:16:06]} 12. Kf1 {[%clk 1:32:49]}  Be7 {[%clk 1:14:47]}
13. Neg5 {[%clk 1:20:26]}  c5 {[%clk 0:57:59]} 14. Rd1 {[%clk 1:14:34]}  h6 {[%clk 0:48:27]} 15. h4 {[%clk 1:07:50]}  cxd4 {[%clk 0:31:15]}
16. Bxd4 {[%clk 0:51:03]}  Re8 {[%clk 0:14:02]} 17. Bg6 {[%clk 0:29:46]}  hxg5 {[%clk 0:10:50]} 18. Bxf7+ {[%clk 0:28:55]}  Kxf7 {[%clk 0:08:15]}
19. Nxg5+ {[%clk 0:27:41]}  Kg8 {[%clk 0:07:07]} 20. Qxe6+ {[%clk 0:27:44]}  Kh8 {[%clk 0:07:31]} 21. Nf7+ {[%clk 0:22:53]}  Kh7 {[%clk 0:07:52]}
22. Nxd8 {[%clk 0:22:04]}  Raxd8 {[%clk 0:08:15]} 23. h5 {[%clk 0:20:12]}  Nf8 {[%clk 0:05:19]} 24. Qf7 {[%clk 0:17:02]}  Ne6 {[%clk 0:00:59]}
25. h6 {[%clk 0:13:07]} 1-0

[Event "2026 European Womens Championship"]
[Site "Batumi, GE"]
[Date "2026.06.04"]
[Round "10"]
[White "Olde, Margareth"]
[Black "Mkrtchian, Lilit"]
[Result "1-0"]
[Board "12"]
[TimeControl "5400+30"]
[WhiteFideId "4503082"]
[BlackFideId "13300601"]
[WhiteElo "2194"]
[BlackElo "2366"]
[WhiteTitle "WIM"]
[BlackTitle "IM"]
[WhiteClock "0:01:16"]
[BlackClock "0:30:30"]
[Variant "Standard"]

1. d4 {[%clk 1:30:57]}  d6 {[%clk 1:30:22]} 2. e4 {[%clk 1:25:39]}  Nf6 {[%clk 1:30:30]} 3. Nc3 {[%clk 1:25:56]}  e5 {[%clk 1:30:50]}
4. Nf3 {[%clk 1:25:46]}  Nbd7 {[%clk 1:31:10]} 5. Bc4 {[%clk 1:24:28]}  Be7 {[%clk 1:31:17]} 6. O-O {[%clk 1:24:35]}  O-O {[%clk 1:31:39]}
7. a4 {[%clk 1:24:07]}  exd4 {[%clk 1:31:59]} 8. Nxd4 {[%clk 1:18:28]}  Ne5 {[%clk 1:32:21]} 9. Bb3 {[%clk 1:14:35]}  c5 {[%clk 1:31:05]}
10. Nde2 {[%clk 1:10:30]}  a6 {[%clk 1:30:53]} 11. Ng3 {[%clk 1:03:41]}  Be6 {[%clk 0:56:09]} 12. Bd5 {[%clk 0:53:02]}  Qd7 {[%clk 0:50:15]}
13. Kh1 {[%clk 0:44:51]}  Nc6 {[%clk 0:39:47]} 14. Nce2 {[%clk 0:42:40]}  Rfe8 {[%clk 0:37:30]} 15. b3 {[%clk 0:35:25]}  Nb4 {[%clk 0:28:15]}
16. c4 {[%clk 0:32:20]}  Bxd5 {[%clk 0:27:52]} 17. cxd5 {[%clk 0:27:59]}  Bf8 {[%clk 0:27:03]} 18. Nc3 {[%clk 0:24:12]}  g6 {[%clk 0:23:25]}
19. Bb2 {[%clk 0:18:07]}  Bg7 {[%clk 0:23:38]} 20. Qd2 {[%clk 0:18:20]}  Rac8 {[%clk 0:18:25]} 21. f3 {[%clk 0:16:49]}  c4 {[%clk 0:17:50]}
22. Nd1 {[%clk 0:13:26]}  a5 {[%clk 0:14:08]} 23. bxc4 {[%clk 0:13:43]}  Rxc4 {[%clk 0:14:32]} 24. Ne3 {[%clk 0:13:55]}  Rc7 {[%clk 0:11:21]}
25. Rac1 {[%clk 0:02:08]}  Rxc1 {[%clk 0:08:29]} 26. Rxc1 {[%clk 0:02:33]}  Rc8 {[%clk 0:08:35]} 27. Rxc8+ {[%clk 0:00:41]}  Qxc8 {[%clk 0:09:02]}
28. h3 {[%clk 0:00:34]}  Ne8 {[%clk 0:04:23]} 29. Bxg7 {[%clk 0:00:50]}  Nxg7 {[%clk 0:03:03]} 30. Qd4 {[%clk 0:00:34]}  h5 {[%clk 0:01:52]}
31. e5 {[%clk 0:00:33]}  dxe5 {[%clk 0:01:09]} 32. Qxe5 {[%clk 0:00:59]}  Qe8 {[%clk 0:00:52]} 33. Qd4 {[%clk 0:01:16]}  f5 {[%clk 0:30:30]} 1-0